[Event "15e Open International de Quenza"]
[Site "Quenza"]
[Date "2026.07.05"]
[Round "9.13"]
[White "BENZIDI, Lyad"]
[Black "BONELLI MAESTRACCI, Pierre Joseph"]
[Result "0-1"]
[TimeControl "5min+3s"]
[WhiteTitle "-"]
[BlackTitle "-"]
[WhiteFideId "-"]
[BlackFideId "-"]
[WhiteElo "1846"]
[BlackElo "2205"]

1. d4 {[%clk 00:05:03]} {[%emt 00:00:01]} Nf6 {[%clk 00:05:03]} 2. Nf3 {[%emt
00:00:02]} b6 3. c4 {[%clk 00:05:03]} {[%emt 00:00:03]} Bb7 {[%clk 00:05:03]} 4.
e3 {[%clk 00:05:02]} {[%emt 00:00:03]} d6 {[%clk 00:05:03]} {[%emt 00:00:03]} 5.
Nc3 {[%emt 00:00:02]} Nbd7 6. Bd3 {[%clk 00:05:00]} {[%emt 00:00:04]} g6 {[%clk
00:05:03]} 7. O-O {[%clk 00:05:00]} {[%emt 00:00:03]} Bg7 {[%clk 00:05:03]} 8.
e4 {[%clk 00:04:50]} {[%emt 00:00:14]} e5 {[%clk 00:05:03]} 9. d5 {[%clk
00:04:46]} {[%emt 00:00:07]} O-O {[%clk 00:05:03]} {[%emt 00:00:02]} 10. Be3
{[%clk 00:04:41]} {[%emt 00:00:08]} Nh5 {[%clk 00:04:57]} {[%emt 00:00:09]} 11.
b4 {[%clk 00:04:41]} {[%emt 00:00:03]} a5 {[%clk 00:04:47]} {[%emt 00:00:14]}
12. a3 {[%clk 00:04:40]} {[%emt 00:00:04]} Nf4 {[%clk 00:04:40]} {[%emt
00:00:10]} 13. c5 {[%clk 00:04:10]} {[%emt 00:00:32]} axb4 {[%clk 00:04:33]}
{[%emt 00:00:10]} 14. c6 {[%clk 00:03:58]} {[%emt 00:00:16]} bxc3 {[%clk
00:04:33]} {[%emt 00:00:03]} 15. cxb7 {[%clk 00:03:58]} {[%emt 00:00:02]} Ra7
{[%clk 00:04:33]} {[%emt 00:00:02]} 16. Bb5 {[%clk 00:03:41]} {[%emt 00:00:19]}
Rxb7 {[%clk 00:04:32]} {[%emt 00:00:04]} 17. Qc2 {[%clk 00:03:40]} {[%emt
00:00:03]} Nc5 {[%clk 00:04:31]} {[%emt 00:00:04]} 18. Bxc5 {[%clk 00:03:07]}
{[%emt 00:00:36]} bxc5 {[%clk 00:04:31]} 19. Bc4 {[%clk 00:03:07]} {[%emt
00:00:02]} f5 {[%clk 00:04:24]} {[%emt 00:00:10]} 20. g3 {[%clk 00:02:42]}
{[%emt 00:00:28]} fxe4 {[%clk 00:04:23]} {[%emt 00:00:05]} 21. Qxe4 {[%clk
00:02:36]} {[%emt 00:00:08]} Nh3+ {[%clk 00:04:20]} {[%emt 00:00:06]} 22. Kg2
{[%clk 00:02:36]} {[%emt 00:00:03]} Ng5 {[%clk 00:04:20]} {[%emt 00:00:02]} 23.
Nxg5 {[%clk 00:02:32]} {[%emt 00:00:06]} Qxg5 {[%clk 00:04:20]} {[%emt
00:00:01]} 24. Rac1 {[%clk 00:02:27]} {[%emt 00:00:08]} Qd2 {[%clk 00:04:13]}
{[%emt 00:00:09]} 25. Qc2 {[%clk 00:02:13]} {[%emt 00:00:14]} Rb2 {[%clk
00:04:11]} {[%emt 00:00:08]} 26. Qxd2 {[%clk 00:02:03]} {[%emt 00:00:14]} cxd2
{[%clk 00:04:11]} 27. Rb1 {[%clk 00:01:49]} {[%emt 00:00:17]} e4 {[%clk
00:04:03]} {[%emt 00:00:11]} 28. Rxb2 {[%clk 00:01:32]} {[%emt 00:00:20]} Bxb2
{[%clk 00:04:03]} 29. Rd1 {[%clk 00:01:21]} {[%emt 00:00:14]} Bc3 {[%clk
00:03:52]} {[%emt 00:00:13]} 30. a4 {[%clk 00:01:09]} {[%emt 00:00:16]} Ra8
{[%clk 00:03:48]} {[%emt 00:00:07]} 31. Bb5 {[%clk 00:01:09]} {[%emt 00:00:03]}
Kg7 {[%clk 00:03:48]} {[%emt 00:00:01]} 32. Kf1 {[%clk 00:01:08]} {[%emt
00:00:03]} Kf6 {[%clk 00:03:48]} {[%emt 00:00:01]} 33. Ke2 {[%clk 00:01:08]}
{[%emt 00:00:02]} Ke5 {[%clk 00:03:48]} 34. Bc6 {[%clk 00:01:08]} {[%emt
00:00:02]} Rb8 {[%clk 00:03:48]} {[%emt 00:00:04]} 35. f3 {[%clk 00:00:56]}
{[%emt 00:00:15]} exf3+ 36. Kxf3 {[%clk 00:00:56]} Kd4 {[%clk 00:03:47]} {[%emt
00:00:04]} 37. Ke2 {[%clk 00:00:52]} {[%emt 00:00:07]} Ba5 {[%clk 00:03:38]}
{[%emt 00:00:11]} 38. g4 {[%clk 00:00:32]} {[%emt 00:00:23]} c4 {[%clk
00:03:38]} {[%emt 00:00:02]} 39. h3 {[%clk 00:00:14]} {[%emt 00:00:21]} c3
{[%clk 00:03:38]} {[%emt 00:00:02]} 40. Bb5 {[%emt 00:00:02]} c2 {[%clk
00:03:28]} {[%emt 00:00:11]} 0-1

[Event "15e Open International de Quenza"]
[Site "Quenza"]
[Date "2026.07.05"]
[Round "9.11"]
[White "RATIER-FONTANA, Matteo"]
[Black "DE SEROUX, Camille"]
[Result "1-0"]
[TimeControl "5min+3s"]
[WhiteTitle "-"]
[BlackTitle "WIM"]
[WhiteFideId "-"]
[BlackFideId "-"]
[WhiteElo "2368"]
[BlackElo "2076"]

1. Nf3 {[%clk 00:05:03]} Nc6 {[%clk 00:04:58]} {[%emt 00:00:09]} 2. d4 {[%clk
00:05:03]} {[%emt 00:00:04]} Nf6 {[%clk 00:04:47]} {[%emt 00:00:14]} 3. Bf4
{[%clk 00:05:00]} {[%emt 00:00:06]} d6 {[%clk 00:04:44]} {[%emt 00:00:05]} 4.
h3 {[%clk 00:04:53]} {[%emt 00:00:10]} g6 {[%clk 00:04:44]} {[%emt 00:00:03]} 5.
e3 {[%clk 00:04:53]} {[%emt 00:00:01]} Bg7 {[%clk 00:04:44]} {[%emt 00:00:01]}
6. Be2 {[%clk 00:04:53]} {[%emt 00:00:01]} O-O {[%clk 00:04:43]} {[%emt
00:00:04]} 7. O-O {[%clk 00:04:53]} {[%emt 00:00:02]} Qe8 {[%clk 00:04:33]}
{[%emt 00:00:14]} 8. Bh2 {[%clk 00:04:53]} {[%emt 00:00:02]} e5 {[%clk
00:04:30]} {[%emt 00:00:06]} 9. c4 {[%clk 00:04:53]} Nd7 {[%clk 00:03:48]}
{[%emt 00:00:45]} 10. Nc3 {[%clk 00:04:51]} {[%emt 00:00:05]} e4 {[%clk
00:03:35]} {[%emt 00:00:16]} 11. Nd2 {[%clk 00:04:51]} {[%emt 00:00:02]} f5
{[%clk 00:03:34]} {[%emt 00:00:04]} 12. b4 {[%clk 00:04:48]} {[%emt 00:00:07]}
Nxb4 {[%clk 00:02:50]} {[%emt 00:00:48]} 13. Qb3 {[%clk 00:04:48]} {[%emt
00:00:02]} Nc6 {[%clk 00:02:38]} {[%emt 00:00:15]} 14. c5+ {[%clk 00:04:48]}
{[%emt 00:00:01]} Kh8 {[%clk 00:02:26]} {[%emt 00:00:15]} 15. cxd6 {[%clk
00:04:48]} {[%emt 00:00:02]} cxd6 {[%clk 00:02:26]} {[%emt 00:00:03]} 16. Nb5
{[%clk 00:04:33]} {[%emt 00:00:18]} Qd8 {[%clk 00:02:05]} {[%emt 00:00:23]} 17.
Nxd6 {[%clk 00:04:21]} {[%emt 00:00:16]} Qe7 {[%clk 00:01:54]} {[%emt
00:00:14]} 18. Nb5 {[%clk 00:04:12]} {[%emt 00:00:12]} f4 {[%clk 00:01:08]}
{[%emt 00:00:48]} 19. Bxf4 {[%clk 00:02:55]} {[%emt 00:01:20]} Rxf4 {[%clk
00:00:55]} {[%emt 00:00:17]} 20. exf4 {[%clk 00:02:53]} {[%emt 00:00:04]} a6
{[%clk 00:00:55]} {[%emt 00:00:02]} 21. Qa3 {[%clk 00:02:07]} {[%emt 00:00:48]}
Qf6 {[%clk 00:00:44]} {[%emt 00:00:14]} 22. Nxe4 {[%clk 00:01:47]} {[%emt
00:00:23]} Qxf4 {[%clk 00:00:42]} {[%emt 00:00:05]} 23. Nbd6 {[%clk 00:01:47]}
{[%emt 00:00:02]} Nxd4 {[%clk 00:00:37]} {[%emt 00:00:08]} 24. Nf7+ {[%clk
00:01:39]} {[%emt 00:00:11]} Qxf7 {[%clk 00:00:37]} {[%emt 00:00:03]} 25. Bd1
{[%clk 00:01:20]} {[%emt 00:00:22]} Ne5 {[%clk 00:00:37]} {[%emt 00:00:02]} 26.
Rc1 {[%clk 00:01:12]} {[%emt 00:00:11]} Bf5 {[%clk 00:00:36]} {[%emt 00:00:03]}
27. Ng3 {[%clk 00:01:09]} {[%emt 00:00:06]} Re8 {[%clk 00:00:28]} {[%emt
00:00:11]} 28. Qd6 {[%clk 00:00:54]} {[%emt 00:00:19]} Nec6 {[%clk 00:00:25]}
{[%emt 00:00:06]} 29. Bb3 {[%clk 00:00:40]} {[%emt 00:00:17]} Qe7 {[%clk
00:00:25]} {[%emt 00:00:03]} 30. Qxe7 {[%clk 00:00:24]} {[%emt 00:00:20]} Rxe7
{[%clk 00:00:25]} {[%emt 00:00:01]} 31. Bd5 {[%clk 00:00:24]} {[%emt 00:00:02]}
Be6 {[%clk 00:00:16]} {[%emt 00:00:11]} 32. Bxe6 {[%clk 00:00:22]} {[%emt
00:00:05]} Rxe6 {[%clk 00:00:16]} {[%emt 00:00:01]} 33. Rb1 {[%clk 00:00:12]}
{[%emt 00:00:13]} b5 {[%clk 00:00:16]} {[%emt 00:00:03]} 34. Rfd1 {[%clk
00:00:12]} {[%emt 00:00:02]} Kg8 {[%clk 00:00:15]} {[%emt 00:00:03]} 35. Kf1
{[%clk 00:00:12]} {[%emt 00:00:02]} Kf7 {[%clk 00:00:15]} {[%emt 00:00:02]} 36.
a4 {[%clk 00:00:08]} {[%emt 00:00:07]} b4 {[%clk 00:00:15]} {[%emt 00:00:03]}
37. a5 {[%clk 00:00:08]} {[%emt 00:00:04]} Re5 {[%clk 00:00:12]} {[%emt
00:00:07]} 38. Ra1 {[%clk 00:00:08]} {[%emt 00:00:03]} Rxa5 {[%clk 00:00:12]}
{[%emt 00:00:02]} 39. Rac1 {[%clk 00:00:08]} {[%emt 00:00:04]} Ra2 {[%clk
00:00:09]} {[%emt 00:00:06]} 40. Ne4 {[%clk 00:00:08]} {[%emt 00:00:01]} h6
{[%clk 00:00:09]} {[%emt 00:00:02]} 41. Nd6+ {[%clk 00:00:08]} Ke6 {[%clk
00:00:09]} {[%emt 00:00:02]} 42. Nc4 {[%clk 00:00:08]} Kd5 {[%clk 00:00:06]}
{[%emt 00:00:05]} 43. Ne3+ {[%clk 00:00:08]} Ke4 {[%clk 00:00:06]} {[%emt
00:00:03]} 44. Re1 {[%clk 00:00:08]} {[%emt 00:00:03]} Kf4 {[%clk 00:00:05]}
{[%emt 00:00:05]} 45. Nd5+ {[%clk 00:00:08]} {[%emt 00:00:01]} Kg5 {[%clk
00:00:05]} {[%emt 00:00:02]} 46. Re4 {[%clk 00:00:05]} {[%emt 00:00:05]} Rc2
{[%clk 00:00:05]} {[%emt 00:00:02]} 47. h4+ {[%clk 00:00:05]} Kf5 {[%clk
00:00:05]} {[%emt 00:00:02]} 48. Ree1 {[%clk 00:00:05]} {[%emt 00:00:04]} b3
{[%clk 00:00:05]} {[%emt 00:00:02]} 49. Ne3+ {[%clk 00:00:05]} {[%emt
00:00:01]} Kf6 {[%emt 00:00:04]} 50. Nxc2 {[%emt 00:00:01]} Nxc2 {[%emt
00:00:01]} 51. Red1 {[%emt 00:00:02]} N2d4 1-0